bitfinex-derivatives/quotes_ETHF0:USTF0_20251210
["timestamp","ask_amount","ask_price","bid_price","bid_amount"]
[1765327094463,1.4616,3320.8,3320.7,3.798]
[1765327095554,1.4616,3320.8,3320.7,3.2078]
[1765327096867,1.4616,3320.8,3319.8,0.15404479]
[1765327096868,1.4616,3320.3,3320.2,3.2078]
[1765327097170,1.4616,3320.3,3320.2,3.798]
[1765327099165,1.4616,3320.3,3320.2,4.3882]
[1765327099364,1.4616,3320.3,3320.2,3.798]
[1765327100667,1.4616,3320.3,3320.2,3.2078]
[1765327100859,1.4616,3319.9,3319.8,4.39165479]
[1765327101368,0.7308,3319.9,3319.8,4.39165479]
[1765327101564,1.4616,3319.9,3319.8,3.80145479]
[1765327101760,1.4616,3319.9,3319.8,4.39165479]
[1765327103370,1.4616,3319.9,3319.8,3.80145479]
[1765327103566,1.4616,3319.9,3319.8,3.80175479]
[1765327103766,1.4616,3319.9,3319.8,3.21125479]
[1765327103971,1.4616,3319.9,3319.8,0.59395479]
[1765327105172,0.7308,3319.9,3319.8,1.18445479]
[1765327105468,4.3852,3320.0,3319.9,1.181]
[1765327105665,3.2078,3320.0,3319.9,1.181]
[1765327106259,0.4403,3320.5,3319.8,0.00345479]
[1765327106564,1.8667,3320.5,3319.8,0.00345479]
[1765327106758,1.1519,3320.0,3319.9,0.5905]
[1765327106969,0.4148,3320.0,3319.9,1.181]
[1765327107169,1.8667,3320.5,3320.4,0.5905]
[1765327107367,1.8667,3320.5,3319.8,0.00345479]
[1765327107368,1.8667,3320.0,3319.9,1.181]
[1765327107563,1.1519,3320.0,3319.9,0.5905]
[1765327107764,1.4519,3319.9,3319.8,0.00345479]
[1765327108169,1.4519,3319.9,3319.8,0.59395479]
[1765327108367,0.4148,3320.0,3319.9,1.181]
[1765327108563,1.1519,3320.0,3319.9,1.181]
[1765327108765,2.5183048,3320.0,3319.9,1.181]
[1765327109169,1.8667,3320.0,3319.9,1.181]
[1765327109371,1.1519,3320.0,3319.9,1.181]
[1765327110075,0.4148,3320.0,3319.9,1.181]
[1765327110867,1.8667,3320.0,3319.9,0.5905]
[1765327111068,1.4519,3319.9,3319.8,0.00345479]
[1765327111265,1.4519,3319.9,3319.8,0.59395479]
[1765327111465,1.4519,3319.9,3319.8,1.18445479]
[1765327112069,1.4519,3319.9,3319.8,0.00345479]
[1765327112373,1.4519,3319.9,3319.8,0.59395479]
[1765327113664,0.4148,3320.0,3319.9,1.181]
[1765327113864,1.1519,3320.5,3320.4,1.181]
[1765327114169,2.51823288,3320.5,3320.4,0.5905]
[1765327114473,2.74856581,3320.5,3320.4,0.5905]
[1765327115869,1.4519,3319.9,3319.8,0.00345479]
[1765327116473,1.4519,3319.9,3319.8,1.18445479]
[1765327116871,0.4148,3320.0,3319.9,1.181]
[1765327117977,1.4519,3319.9,3319.8,0.00345479]
[1765327118278,1.4519,3319.9,3319.8,0.59395479]
[1765327118480,1.4519,3319.9,3319.8,1.18445479]
[1765327118778,1.4519,3319.9,3319.8,0.59395479]
[1765327119479,1.4519,3319.9,3319.8,1.18445479]
[1765327121381,1.4519,3319.9,3319.8,0.59395479]
[1765327121580,1.4519,3319.9,3319.8,0.00345479]
[1765327122276,2.33425873,3319.9,3319.8,0.00345479]
[1765327122471,2.48484873,3319.9,3319.8,0.00345479]
[1765327122881,2.48492169,3319.9,3319.8,0.00345479]
[1765327126782,1.4519,3319.6,3319.5,0.00451677]
[1765327126976,1.4519,3318.9,3318.8,4.3958]
[1765327127484,0.7371,3318.9,3318.8,4.3958]
[1765327127880,1.45542628,3318.9,3318.8,4.39893103]
[1765327128074,1.45542628,3318.9,3318.8,3.80493103]
[1765327128880,0.74062628,3318.9,3318.8,4.39893103]
[1765327129387,0.00352628,3318.9,3318.8,4.39893103]
[1765327130376,0.74062628,3318.9,3318.8,4.39893103]
[1765327130577,0.00352628,3318.9,3318.8,4.39893103]
[1765327132381,0.74062628,3318.9,3318.8,4.39893103]
[1765327132688,0.00352628,3318.9,3318.8,4.39893103]
[1765327136678,2.628e-05,3318.9,3318.8,4.39893103]
[1765327136879,1.38257234,3319.8,3319.7,1.1814]
[1765327137079,1.8184,3320.0,3319.9,1.1814]
[1765327137282,2.46994425,3320.0,3319.9,1.1814]
[1765327137584,2.46994425,3320.0,3319.9,0.5907]
[1765327137787,2.47251948,3320.0,3319.9,0.5907]
[1765327138790,0.7311,3319.6,3319.5,3.7985]
[1765327138985,1.4036,3319.6,3319.5,3.2078]
[1765327139893,1.4036,3319.6,3319.5,3.7985]
[1765327140594,1.4036,3319.6,3319.5,3.2078]
[1765327140991,1.4036,3319.6,3319.5,3.7985]
[1765327141494,1.4036,3319.2,3319.1,3.2078]
[1765327144199,1.4036,3318.9,3318.7,3.2078]
[1765327145003,1.4036,3318.9,3318.5,0.00451677]
[1765327145491,2.05508613,3318.9,3318.5,0.00451677]
[1765327146289,1.4036,3318.9,3318.5,0.00451677]
[1765327146994,2.05511943,3318.9,3318.5,0.00451677]
[1765327147194,1.4036,3318.9,3318.5,0.00451677]
[1765327147398,2.05513992,3318.9,3318.5,0.00451677]
[1765327151696,2.28535564,3318.9,3318.5,0.00451677]
[1765327152996,1.3803,3318.4,3318.3,3.2078]
[1765327153591,1.3803,3318.4,3317.9,3.2078]
[1765327153796,1.7997,3318.0,3317.9,3.8013]
[1765327154094,1.7997,3318.0,3317.9,3.80383101]
[1765327154497,1.7997,3318.0,3317.9,4.39733101]
[1765327158208,1.7997,3318.0,3317.9,3.80383101]
[1765327158508,1.7997,3318.0,3317.9,4.39733101]
[1765327158901,1.7997,3318.0,3317.9,3.80383101]
[1765327159509,1.7997,3318.0,3317.9,3.21033101]
[1765327160510,1.7997,3318.0,3317.9,3.80383101]
[1765327161417,1.7997,3318.0,3317.9,3.21033101]
[1765327164211,1.7997,3318.0,3317.9,3.80383101]
[1765327164809,3.09568777,3318.0,3317.9,3.80383101]
[1765327167911,3.09568777,3318.0,3317.9,3.21033101]
[1765327168109,3.09568777,3318.0,3317.9,3.80003101]
[1765327169706,3.09568777,3318.0,3317.9,4.38973101]
[1765327170416,3.09568777,3318.0,3317.9,3.80003101]
[1765327173115,3.09568777,3318.0,3317.9,4.38973101]
[1765327173814,3.09568777,3318.0,3317.9,0.00253101]
[1765327174120,1.1311,3317.0,3316.9,4.3872]
[1765327174514,1.1311,3317.0,3316.9,1.1794]
[1765327174714,1.1311,3317.0,3316.9,4.3872]
[1765327174915,0.00239433,3317.0,3316.9,3.21014239]
[1765327175116,0.00239433,3317.0,3316.9,4.38954239]
[1765327176719,0.00239433,3317.0,3316.9,10.38954239]
[1765327177121,3.2078,3317.7,3317.6,1.1746]
[1765327177518,3.13168777,3318.0,3317.9,0.5873]
[1765327177719,3.78387965,3318.0,3317.3,3.2078]
[1765327177914,0.65219188,3317.9,3317.3,3.2078]
[1765327178118,2.0720597,3317.9,3317.8,0.5873]
[1765327178517,2.0720597,3317.9,3317.3,3.2078]
[1765327178719,1.41986782,3317.9,3317.8,1.1746]
[1765327178921,2.07199149,3317.9,3317.8,1.1746]
[1765327179926,1.35489149,3317.9,3317.8,1.1746]
[1765327180121,0.70276782,3317.9,3317.8,1.1746]
[1765327180322,1.41986782,3317.9,3317.8,0.5873]
[1765327180820,1.41986782,3317.9,3317.8,1.1746]
[1765327182326,2.07265962,3317.9,3317.8,1.1746]
[1765327183028,2.07265962,3317.9,3317.8,0.5873]
[1765327185127,2.07265962,3317.9,3317.8,1.1746]
[1765327186434,0.65635962,3317.9,3317.8,1.1746]
[1765327186728,0.00356782,3317.9,3317.8,1.1746]
[1765327187130,0.70276782,3317.9,3317.8,1.1746]
[1765327187429,1.35555962,3317.9,3317.8,1.1746]
[1765327187630,2.07265962,3317.9,3317.8,1.1746]
[1765327187825,1.35555962,3317.9,3317.8,1.1746]
[1765327188634,1.4163,3317.8,3317.7,4.3824]
[1765327188929,2.0690918,3317.8,3317.7,3.7951]
[1765327189131,2.0690918,3317.8,3317.7,3.2078]
[1765327189630,2.0690918,3317.8,3317.7,3.7951]
[1765327189827,2.29930463,3317.8,3317.7,3.7951]
[1765327190438,0.88300463,3317.8,3317.7,4.3824]
[1765327190635,0.92941279,3317.8,3317.7,3.2078]
[1765327190841,2.30032673,3317.8,3317.7,3.7951]
[1765327195044,1.58322673,3317.8,3317.7,4.3824]
[1765327195244,0.88402673,3317.8,3317.7,4.3824]
[1765327195441,0.00356782,3317.9,3317.8,1.1716]
[1765327200455,1.4346,3317.8,3317.7,4.3794]
[1765327200946,2.73058777,3317.8,3317.7,3.2078]
[1765327201145,2.0870272,3317.8,3317.7,0.5858]
[1765327201454,2.0870272,3317.8,3317.2,3.2078]
[1765327201455,1.4346,3317.3,3317.2,3.2078]
[1765327201747,1.8714,3317.0,3316.9,1.17394239]
[1765327202540,1.8714,3317.0,3316.9,0.00234239]
[1765327202756,2.52356149,3317.0,3316.9,0.00234239]
[1765327203446,2.52356149,3317.0,3316.9,1.17394239]
[1765327203748,2.52356149,3317.0,3316.9,0.58814239]
[1765327203948,2.52356149,3317.0,3316.9,1.17394239]
[1765327204453,2.52356149,3317.0,3316.9,0.58814239]
[1765327204650,3.81954926,3317.0,3316.9,0.00234239]
[1765327204861,3.81954926,3317.0,3316.3,3.2078]
[1765327204862,1.4346,3316.4,3316.3,3.7936]
[1765327205049,1.4346,3316.4,3316.3,0.5858]
[1765327206064,2.3155472,3316.4,3316.3,0.00295017]
[1765327206248,2.08585794,3316.4,3316.3,0.00295017]
[1765327208352,1.4346,3316.4,3316.3,0.00295017]
[1765327209346,2.73058777,3316.4,3316.3,0.00295017]
[1765327209863,1.4152,3316.1,3316.0,0.00451677]
[1765327210159,1.8477,3316.0,3315.9,0.5926]
[1765327210354,0.4325,3316.0,3315.9,1.1852]
[1765327210554,4.623,3316.4,3316.3,0.5926]
[1765327210755,4.623,3316.4,3316.3,1.1852]
[1765327211055,4.623,3316.4,3316.3,1.18818713]
[1765327211258,3.2078,3316.4,3316.3,1.18818713]
[1765327211754,4.623,3316.4,3316.3,1.18818713]
[1765327212150,1.4152,3316.4,3316.3,1.18818713]
[1765327214654,1.4152,3316.4,3316.3,0.59558713]
[1765327215056,1.4152,3316.4,3316.3,1.18818713]
[1765327216059,0.7063,3316.4,3316.3,1.18818713]
[1765327216262,1.1431,3316.5,3316.4,1.1852]
[1765327216755,0.4368,3316.5,3316.4,1.1852]
[1765327217261,1.852,3316.5,3316.4,1.1852]
[1765327219565,1.1431,3316.5,3316.4,1.1852]
[1765327223777,1.852,3316.5,3316.4,0.5926]
[1765327224066,1.3985,3316.4,3316.3,0.59378713]
[1765327224870,1.3985,3316.4,3316.3,0.00298713]
[1765327227667,1.3985,3316.4,3316.1,3.2078]
[1765327227967,1.3985,3316.4,3313.7,15.61149286]
[1765327227968,0.4064,3315.0,3314.4,1.1876]
[1765327228167,1.80942386,3315.0,3314.9,1.1876]
[1765327228365,0.00452386,3315.0,3314.9,1.1876]
[1765327228771,0.00827588,3315.0,3314.9,1.19044169]
[1765327230461,0.00827588,3315.0,3314.9,0.00284169]
[1765327230462,1.81317588,3315.0,3314.9,0.00284169]
[1765327230666,1.81317588,3315.0,3314.9,0.59664169]
[1765327230869,1.81317588,3315.0,3314.9,1.19044169]
[1765327231069,1.81317588,3315.0,3314.9,0.59664169]
[1765327231264,3.2078,3315.9,3315.4,1.1876]
[1765327231468,3.2078,3315.9,3315.8,1.1876]
[1765327231667,3.896,3315.9,3315.8,1.1876]
[1765327232068,3.2078,3315.9,3315.8,1.1876]
[1765327232268,3.21005286,3315.9,3315.8,1.1876]
[1765327233369,0.00225286,3315.9,3315.8,1.1876]
[1765327234877,0.00225286,3315.9,3315.6,4.3954]
[1765327234878,1.3985,3315.7,3315.6,4.3954]
[1765327235275,0.6882,3315.7,3315.6,4.3954]
[1765327235773,1.3985,3315.7,3315.6,4.3954]
[1765327236277,1.40075286,3315.9,3315.8,1.1876]
[1765327236577,1.40075286,3315.9,3315.8,0.5938]
[1765327236971,1.40075286,3315.9,3315.8,1.1876]
[1765327237881,0.00225286,3315.9,3315.8,1.1876]
[1765327238079,0.69045286,3315.9,3315.8,1.1876]
[1765327238278,1.40075286,3315.9,3315.8,1.1876]
[1765327239785,0.00225286,3315.9,3315.8,1.1876]
[1765327240281,1.40075286,3315.9,3315.8,0.5938]
[1765327240674,0.69045286,3315.9,3315.8,1.1876]
[1765327240879,0.00225286,3315.9,3315.8,1.1876]
[1765327241377,1.40075286,3315.9,3315.8,1.1876]
[1765327241777,1.40075286,3315.9,3315.8,0.5938]
[1765327241979,1.40075286,3315.9,3315.8,1.1876]
[1765327242184,0.00225286,3315.9,3315.8,1.1876]
[1765327242384,1.40075286,3315.9,3315.8,1.1876]
[1765327242781,1.3985,3315.7,3315.6,3.2078]
[1765327242982,1.3985,3315.6,3315.5,0.00452386]
[1765327243186,4.6063,3315.6,3315.5,0.00452386]
[1765327243383,5.25759798,3315.6,3315.5,0.00452386]
[1765327243682,4.6063,3315.6,3315.5,0.00452386]
[1765327246086,4.6063,3315.6,3315.5,1.19212386]
[1765327246391,3.2078,3315.6,3315.5,1.19212386]
[1765327246586,3.896,3315.6,3315.5,1.19212386]
[1765327246889,4.6063,3315.6,3315.5,1.19212386]
[1765327248194,3.896,3315.6,3315.5,1.19212386]
[1765327248596,4.6063,3315.6,3315.5,1.19212386]
[1765327249896,4.6063,3315.6,3315.5,0.59832386]
[1765327250096,4.6063,3315.6,3315.5,0.00452386]
[1765327253694,5.25755094,3315.6,3315.5,0.00452386]
[1765327254701,1.418,3315.1,3315.0,3.2078]
[1765327254900,1.418,3315.1,3315.0,3.8088]
[1765327255701,1.418,3315.1,3315.0,4.4098]
[1765327256806,1.418,3315.1,3315.0,3.2078]
[1765327257705,1.8391,3315.0,3314.9,0.00284169]
[1765327257913,0.4211,3315.0,3314.9,1.20484169]
[1765327258211,1.8391,3315.0,3314.9,0.00284169]
[1765327258510,1.8391,3315.0,3314.9,0.60384169]
[1765327258710,1.8391,3315.0,3314.9,1.20484169]
[1765327259212,1.8391,3315.0,3314.9,0.60384169]
[1765327259518,1.8391,3315.0,3314.9,0.00284169]
[1765327261012,1.8391,3315.0,3314.9,1.20484169]
[1765327261208,1.1199,3315.0,3314.9,1.20484169]
[1765327261409,1.8391,3315.0,3314.9,1.20484169]
[1765327261711,1.8391,3315.0,3314.9,0.60384169]
[1765327262011,1.8391,3315.0,3314.9,0.00284169]
[1765327262603,0.6988,3314.1,3314.0,3.2078]
[1765327262804,1.418,3314.1,3314.0,3.2078]
[1765327263711,1.418,3314.1,3314.0,3.21009058]
[1765327264408,1.418,3314.1,3314.0,3.81399058]
[1765327264804,1.418,3314.1,3314.0,3.21009058]
[1765327265211,1.418,3314.1,3314.0,0.00229058]
[1765327266211,10.77665,3314.1,3314.0,0.00229058]
[1765327266416,10.77665,3314.1,3313.0,3.2078]
[1765327266417,1.4,3313.1,3313.0,3.2078]
[1765327266617,1.833,3312.5,3312.4,1.2056]
[1765327267411,1.83672093,3312.5,3312.4,0.00296359]
[1765327268108,0.00372093,3312.5,3312.4,1.20856359]
[1765327268614,0.43672093,3312.5,3312.4,1.20856359]
[1765327270518,0.00372093,3312.5,3312.4,7.20856359]
[1765327271018,3.2078,3313.3,3313.2,1.2056]
[1765327271314,4.6078,3313.3,3313.2,1.2056]
[1765327271513,4.6078,3313.3,3313.2,0.6028]
[1765327271715,4.6078,3313.3,3312.4,0.00296359]
[1765327271915,0.433,3312.5,3312.4,1.20856359]
[1765327272114,0.43639629,3312.5,3312.4,1.20856359]
[1765327273215,1.10929629,3312.5,3312.4,1.20856359]
[1765327273421,0.43639629,3312.5,3312.4,1.20856359]
[1765327273616,0.00339629,3312.5,3312.4,1.20856359]
[1765327273821,0.00339629,3312.5,3312.4,4.41636359]
[1765327276125,0.43639629,3312.5,3312.4,4.41636359]
[1765327277121,1.83639629,3312.5,3312.4,4.41636359]
[1765327277724,3.2078,3313.3,3313.2,1.2056]
[1765327278521,0.433,3314.5,3313.7,0.6028]
[1765327278522,3.8807,3313.8,3313.7,0.6028]
[1765327278718,3.21016113,3313.8,3313.7,1.2056]
[1765327279819,0.00236113,3313.8,3313.7,1.2056]
[1765327280321,1.40236113,3313.8,3313.7,0.6028]
[1765327280519,0.67526113,3313.8,3313.7,1.2056]
[1765327281419,0.00236113,3313.8,3313.7,1.2056]
[1765327282824,0.00236113,3313.8,3313.7,1.35647]
[1765327285424,0.15081,3315.2,3313.7,1.35647]
[1765327285425,3.2078,3314.7,3314.3,1.2022]
[1765327286219,1.40732386,3314.4,3314.0,3.35866]
[1765327286421,1.40732386,3314.4,3314.3,0.6011]
[1765327286622,1.41112841,3314.4,3314.3,1.2022]
[1765327286823,0.73622841,3314.4,3314.3,1.2022]
[1765327287021,0.00832841,3314.4,3314.3,1.2022]
[1765327287822,1.41112841,3314.4,3314.3,1.2022]
[1765327288016,0.00832841,3314.4,3314.3,1.2022]
[1765327289920,0.73622841,3314.4,3314.3,1.2022]
[1765327290119,0.00832841,3314.4,3314.3,1.2022]
[1765327291121,0.00832841,3314.4,3314.3,1.35304]
[1765327293326,3.2078,3315.1,3315.0,1.1856]
[1765327293534,4.6106,3315.1,3315.0,2.48376245]
[1765327294232,3.9357,3315.1,3315.0,2.48376245]
[1765327294531,3.93951935,3315.1,3315.0,2.48709965]
[1765327294730,4.61441935,3315.1,3315.0,1.1889372]
[1765327295832,4.61441935,3315.1,3315.0,0.0033372]
[1765327299442,4.61441935,3315.1,3315.0,1.1889372]
[1765327299735,3.93951935,3315.1,3315.0,1.1889372]
[1765327299932,4.61441935,3315.1,3315.0,0.5961372]
[1765327300444,4.61441935,3315.1,3315.0,1.1889372]
[1765327301042,3.93951935,3315.1,3315.0,1.1889372]
[1765327301230,4.61441935,3315.1,3315.0,1.1889372]
[1765327301942,1.40661935,3315.1,3315.0,1.1889372]
[1765327302238,0.00381935,3315.1,3315.0,1.1889372]
[1765327302438,0.73171935,3315.1,3315.0,1.1889372]
[1765327302840,0.00381935,3315.1,3315.0,1.1889372]
[1765327304642,0.73171935,3315.1,3315.0,1.1889372]
[1765327304842,0.00381935,3315.1,3315.0,1.1889372]
[1765327305947,1.40661935,3315.1,3315.0,0.0033372]
[1765327306442,1.40661935,3315.1,3315.0,0.5961372]
[1765327307343,1.40661935,3315.1,3315.0,1.1889372]
[1765327307543,1.40661935,3315.1,3315.0,0.5961372]
[1765327307943,1.40661935,3315.1,3315.0,1.1889372]
[1765327308547,0.00452386,3315.4,3315.3,1.1856]
[1765327308946,0.00452386,3315.4,3315.3,1.3364]
[1765327309554,0.00797086,3315.4,3315.3,1.3364]
[1765327311046,0.00797086,3315.4,3315.3,4.5442]
[1765327311748,0.4403,3316.0,3315.9,1.1856]
[1765327312056,0.4403,3316.0,3315.7,3.35858]
[1765327312250,1.8431,3316.0,3315.9,1.1856]
[1765327312854,1.84582561,3316.0,3315.9,1.1856]
[1765327313154,1.17092561,3316.0,3315.9,1.1856]
[1765327313344,1.84582561,3316.0,3315.9,1.1856]
[1765327314255,1.4307,3315.8,3315.7,3.8003]
[1765327314458,1.4307,3315.8,3315.7,3.2078]
[1765327314953,1.4307,3315.8,3315.7,3.8003]
[1765327315655,1.87372561,3316.0,3315.9,1.185]
[1765327316154,1.87372561,3316.0,3315.9,0.5925]
[1765327316957,1.14852561,3316.0,3315.9,1.185]
[1765327317452,1.87372561,3316.0,3315.9,1.185]
[1765327318358,1.4307,3315.9,3315.8,1.88949771]
[1765327318655,1.4307,3315.9,3315.8,0.5925]
[1765327318961,1.4307,3315.9,3315.8,1.185]
[1765327321052,1.4307,3315.9,3315.8,0.5925]
[1765327321258,1.4307,3315.8,3315.7,3.8003]
[1765327321557,1.4307,3315.8,3315.7,3.2078]
[1765327321747,1.8529,3315.5,3315.4,1.33579]
[1765327322253,1.87372561,3316.0,3315.9,0.5925]
[1765327322557,1.14852561,3316.0,3315.9,1.185]
[1765327322943,1.87372561,3316.0,3315.9,1.185]
[1765327323147,1.87372561,3316.0,3315.5,0.15079]
[1765327323359,1.4307,3315.6,3315.5,1.33579]
[1765327323653,0.7055,3315.6,3315.5,1.33579]
[1765327323955,0.44302561,3316.0,3315.5,1.33579]
[1765327324755,1.87372561,3316.0,3315.9,0.5925]
[1765327325558,0.7055,3315.6,3315.5,1.33579]
[1765327326558,1.86102561,3316.0,3315.9,0.5934]
[1765327327051,1.86102561,3316.0,3315.5,0.15079]
[1765327328457,1.86102561,3316.0,3315.9,0.5934]
[1765327329260,1.86102561,3316.0,3315.9,1.1868]
[1765327329660,1.86102561,3316.0,3315.9,0.5934]
[1765327329862,0.7057,3315.6,3315.5,1.33759]
[1765327330360,1.86102561,3316.0,3315.9,0.5934]
[1765327331063,1.86102561,3316.0,3315.9,1.1868]
[1765327331370,0.44302561,3316.0,3315.9,1.1868]
[1765327331657,0.00272561,3316.0,3315.9,1.1868]
[1765327332162,1.418,3315.9,3315.8,0.15077]
[1765327332356,1.418,3315.8,3315.7,3.8012]
[1765327332753,1.418,3315.8,3315.7,4.3946]
[1765327333156,1.418,3315.8,3315.7,3.8012]
[1765327333359,1.418,3315.8,3315.7,3.2078]
[1765327333553,1.418,3315.8,3315.7,3.8012]
[1765327333753,1.418,3315.8,3315.7,3.2078]
[1765327334560,1.418,3315.8,3315.7,3.8012]
[1765327335261,1.418,3315.6,3315.5,1.6215541]
[1765327335454,1.418,3315.4,3315.3,3.2078]
[1765327337067,1.418,3315.1,3315.0,1.62848674]
[1765327337265,1.418,3315.1,3315.0,0.0033372]
[1765327339558,4.6258,3315.1,3315.0,0.0033372]
[1765327339759,5.51849326,3315.1,3315.0,0.0033372]
[1765327340371,5.27774519,3315.1,3315.0,0.0033372]
[1765327340767,4.6258,3315.1,3315.0,1.1901372]
[1765327341471,4.6258,3315.1,3315.0,0.5967372]
[1765327341972,3.2078,3315.1,3315.0,1.1901372]
[1765327342373,4.6258,3315.1,3315.0,0.5967372]
[1765327342571,4.6258,3315.1,3315.0,1.1901372]
[1765327344074,1.418,3315.1,3315.0,1.1901372]
[1765327344276,1.418,3315.1,3315.0,0.0033372]
[1765327347275,4.6258,3315.1,3315.0,0.0033372]
[1765327348869,4.6258,3315.1,3315.0,1.1861372]
[1765327349070,3.2078,3315.1,3315.0,1.1861372]
[1765327349465,4.568,3315.1,3315.0,1.1861372]
[1765327349670,4.568,3315.1,3315.0,0.5947372]
[1765327349870,4.568,3315.1,3315.0,1.1861372]
[1765327350371,3.8861,3315.1,3315.0,1.1861372]
[1765327350570,3.2078,3315.1,3315.0,1.1861372]
[1765327350778,5.0077,3315.5,3315.4,1.1828]
[1765327351278,1.3602,3315.1,3315.0,0.0033372]
[1765327351476,1.3602,3315.1,3315.0,0.5947372]
[1765327351777,1.3602,3315.1,3315.0,1.1861372]
[1765327351973,1.3602,3315.1,3315.0,0.5947372]
[1765327352279,1.3602,3315.1,3314.8,1.62514954]
[1765327352280,1.3602,3314.8,3314.7,0.00452386]
[1765327352475,0.6783,3314.8,3314.7,1.19392386]
[1765327352681,1.7694,3315.0,3314.9,1.1894]
[1765327352876,1.7694,3315.0,3314.9,0.5947]
[1765327353279,1.7694,3315.0,3314.9,0.0029326]
[1765327353676,1.7694,3315.0,3314.9,0.5976326]
[1765327355986,1.7694,3315.0,3314.9,0.0029326]
[1765327357981,0.4092,3314.5,3314.0,0.6021]
[1765327358184,1.3602,3313.9,3313.8,2.22724954]
[1765327358486,1.3602,3313.9,3313.8,0.6021]
[1765327358881,1.3602,3313.9,3313.8,1.20670425]
[1765327359084,1.3602,3313.9,3313.8,0.60460425]
[1765327359278,1.3602,3313.9,3313.8,0.00250425]
[1765327361874,1.3602,3313.6,3313.5,0.00452386]
[1765327362083,1.7694,3312.5,3312.4,1.62514954]
[1765327362280,0.4092,3312.5,3312.4,1.2182]
[1765327362487,0.4092,3312.5,3312.3,3.2078]
[1765327362488,3.8861,3312.9,3312.8,1.2182]
[1765327362686,4.568,3312.9,3312.8,1.2182]
[1765327362880,0.00254392,3312.9,3312.8,1.22054689]
[1765327365688,3.8861,3313.9,3313.8,1.3665]
[1765327365884,0.00452386,3314.2,3313.9,1.3665]
[1765327366084,1.0875,3314.0,3313.9,1.3665]
[1765327366486,1.7694,3314.0,3313.9,0.6731]
[1765327366787,1.77199925,3314.0,3313.9,0.6731]
[1765327368395,0.6783,3313.8,3313.7,5.89523549]
[1765327368595,1.77199925,3314.0,3313.9,0.6731]
[1765327369091,1.3602,3313.8,3313.3,3.2078]
[1765327369394,1.3602,3312.9,3312.8,3.21014689]
[1765327372795,1.3602,3312.9,3312.8,0.00234689]
[1765327375105,1.3602,3312.9,3312.8,0.67544689]
[1765327375704,0.6783,3312.9,3312.8,1.35784689]
[1765327377308,1.3544,3312.9,3312.8,1.35784689]
[1765327377509,1.3544,3312.9,3312.8,0.67544689]
[1765327377903,1.3544,3312.9,3312.8,1.35784689]
[1765327378104,1.3544,3312.9,3312.8,0.00234689]
[1765327378311,1.3544,3312.9,3312.8,0.73014689]
[1765327378509,1.3544,3312.9,3312.8,1.41254689]
[1765327378908,1.3544,3312.9,3312.8,0.00234689]
[1765327379108,1.3544,3312.9,3312.8,0.73014689]
[1765327379511,1.3544,3312.9,3312.8,0.00234689]
[1765327379704,1.3544,3312.9,3312.8,0.73014689]
[1765327380710,1.3544,3312.9,3312.8,0.00234689]
[1765327380912,1.3544,3312.9,3312.8,0.73014689]
[1765327381209,0.6783,3312.9,3312.8,1.41254689]
[1765327381806,1.3544,3312.9,3312.8,1.41254689]
[1765327382208,0.6783,3312.9,3312.8,1.41254689]
[1765327382412,0.4092,3313.0,3312.9,1.4102]
[1765327382611,1.1194,3313.0,3312.9,1.4102]
[1765327382913,1.7955,3313.0,3312.9,1.4102]
[1765327383108,1.7955,3313.0,3312.9,0.7278]
[1765327383314,1.3863,3312.9,3312.8,0.00234689]
[1765327383906,1.7955,3313.5,3313.4,1.4102]
[1765327384213,3.61959925,3314.0,3313.4,1.4102]
[1765327384806,5.00589925,3314.0,3313.9,1.4102]
[1765327385008,1.79809925,3314.0,3313.9,1.4102]
[1765327385207,1.12199925,3314.0,3313.9,1.4102]
[1765327385609,0.7102,3313.7,3313.6,4.618]
[1765327385807,1.3863,3313.7,3313.6,4.618]
[1765327386413,1.3863,3313.7,3313.6,3.9356]
[1765327386912,0.7102,3313.7,3313.6,4.6782]
[1765327387209,1.3571,3313.7,3313.6,3.9516]
[1765327387916,1.3571,3313.7,3313.6,4.6942]
[1765327388215,0.6869,3313.7,3313.6,4.6942]
[1765327388415,1.3571,3313.7,3313.6,4.6942]
[1765327389517,1.76889925,3314.0,3313.9,0.7438]
[1765327391414,0.41179925,3314.0,3313.9,1.63726]
[1765327391713,0.00259925,3314.0,3313.9,3.25587473]
[1765327391907,0.00259925,3314.0,3313.8,1.32176906]
[1765327391908,3.8947,3314.8,3314.7,1.4864]
[1765327392107,1.3571,3314.8,3314.7,1.4864]
[1765327392508,0.6869,3314.8,3314.7,1.4864]
[1765327392714,1.3571,3314.4,3314.3,0.89464]
[1765327392916,1.3603225,3314.4,3314.3,0.89464]
[1765327393320,1.3603225,3314.4,3314.3,1.63724]
[1765327393321,0.6901225,3314.4,3314.3,1.63724]
[1765327393614,0.0032225,3314.4,3314.3,1.63724]
[1765327394117,1.3603225,3314.4,3314.3,0.89464]
[1765327394717,1.3603225,3314.4,3314.3,1.63724]
[1765327395419,1.3603225,3314.4,3314.3,0.89464]
[1765327396117,1.3603225,3314.4,3314.3,1.63724]
[1765327397629,0.6901225,3314.4,3314.3,1.63724]
[1765327397920,1.3603225,3314.4,3314.3,1.63724]
[1765327398125,1.3603225,3314.4,3314.3,0.89464]
[1765327398325,1.3603225,3314.4,3314.3,1.63724]
[1765327398623,1.3603225,3314.4,3314.3,0.15084]
[1765327399122,1.3571,3314.3,3314.2,3.2078]
[1765327399425,1.3571,3314.3,3314.2,4.6942]
[1765327399623,0.0032225,3314.4,3314.3,1.63724]
[1765327403231,0.6901225,3314.4,3314.3,1.63724]
[1765327403526,0.0032225,3314.4,3314.3,1.63724]
[1765327405530,1.1096,3315.0,3314.9,1.4293]
[1765327405723,1.8124,3315.0,3314.9,5.95886906]
[1765327406428,1.8150952,3315.0,3314.9,5.95886906]
[1765327406629,1.8150952,3315.0,3314.9,4.52956906]
[1765327407127,1.8150952,3315.0,3314.9,5.26266906]
[1765327407722,1.8150952,3315.0,3314.9,3.2078]
[1765327408120,1.3946,3314.8,3314.7,0.15082]
[1765327408323,1.3946,3314.8,3314.7,0.88392]
[1765327408727,1.3946,3314.8,3314.7,2.18169214]